fUST/lending_fUST_20250311
["ID","MTS","AMOUNT","RATE_DAILY","PERIOD"]
[355863749,1741644641354,-151.0,0.00047977,120]
[355863750,1741644641365,-430.95114699,0.00048,2]
[355863751,1741644641375,-198.0,0.00048,90]
[355863752,1741644641386,-500.0,0.00048005,2]
[355863753,1741644641396,-500.0,0.00048005,2]
[355863754,1741644641406,-165.534539,0.00048005,120]
[355863755,1741644641417,-255.088096,0.00048005,120]
[355863756,1741644641427,-277.225583,0.00048005,120]
[355863757,1741644641438,-293.45121,0.00048005,120]
[355863758,1741644641449,-293.45121,0.00048005,120]
[355863759,1741644641459,-238.141636,0.00048005,120]
[355863760,1741644641470,-238.141636,0.00048005,120]
[355863761,1741644641481,-267.572226,0.00048005,120]
[355863762,1741644641491,-151.0,0.00048005,120]
[355863763,1741644641507,-395.376894,0.00048005,120]
[355863764,1741644641518,-395.376894,0.00048005,120]
[355863765,1741644641528,-290.107097,0.00048005,120]
[355863766,1741644641538,-290.107097,0.00048005,120]
[355863767,1741644641548,-237.071884,0.00048005,120]
[355863768,1741644641558,-237.071884,0.00048005,120]
[355863769,1741644641568,-1067.533505,0.00048005,120]
[355863770,1741644641578,-1067.533505,0.00048005,120]
[355863771,1741644641588,-736.564525,0.00048005,120]
[355863772,1741644641598,-736.564525,0.00048005,120]
[355863773,1741644641608,-166.0038,0.00048005,120]
[355863774,1741644641618,-166.0038,0.00048005,120]
[355863775,1741644641629,-151.0,0.00048005,120]
[355863776,1741644641639,-235.036108,0.00048005,120]
[355863777,1741644641650,-235.036108,0.00048005,120]
[355863778,1741644641660,-404.10307,0.00048005,120]
[355863779,1741644641670,-404.10307,0.00048005,120]
[355863780,1741644641680,-345.775452,0.00048005,120]
[355863781,1741644641690,-345.775452,0.00048005,120]
[355863782,1741644641701,-172.868267,0.00048005,120]
[355863783,1741644641711,-151.0,0.00048005,120]
[355863784,1741644641721,-163.541863,0.00048005,120]
[355863785,1741644641731,-151.0,0.00048005,120]
[355863786,1741644641742,-151.0,0.00048005,90]
[355863787,1741644641751,-395.167007,0.00048005,110]
[355863788,1741644641761,-395.167007,0.00048005,110]
[355863789,1741644641771,-324.010013,0.00048005,120]
[355863790,1741644641781,-324.010013,0.00048005,120]
[355863791,1741644641791,-151.0,0.00048005,120]
[355863792,1741644641801,-151.0,0.00048005,120]
[355863793,1741644641811,-394.807693,0.00048005,120]
[355863794,1741644641821,-394.807693,0.00048005,120]
[355863795,1741644641831,-151.0,0.00048005,120]
[355863796,1741644641841,-316.249503,0.00048005,120]
[355863797,1741644641851,-316.249503,0.00048005,120]
[355863798,1741644641861,-151.0,0.00048005,120]
[355863799,1741644641871,-151.0,0.00048005,120]
[355863800,1741644641881,-151.0,0.00048005,120]
[355863801,1741644641892,-151.0,0.00048005,120]
[355863802,1741644641904,-225.00003,0.00048005,120]
[355863803,1741644641915,-288.50938,0.00048005,120]
[355863804,1741644641925,-288.50938,0.00048005,120]
[355863805,1741644641937,-151.0,0.00048005,120]
[355863806,1741644641948,-151.0,0.00048005,120]
[355863807,1741644641959,-151.0,0.00048005,120]
[355863808,1741644641971,-239.073146,0.00048005,120]
[355863809,1741644641983,-239.073146,0.00048005,120]
[355863810,1741644641994,-151.0,0.00048005,120]
[355863811,1741644642004,-42753.0855858,0.00048005,4]
[355863812,1741644642014,-1672.99884741,0.00048005,4]
[355863813,1741644642024,-151.0,0.00048014,120]
[355863814,1741644642033,-360.571511,0.00048014,30]
[355863815,1741644642043,-151.0,0.00048014,120]
[355863816,1741644642052,-268.873648,0.00048014,120]
[355863817,1741644642062,-235.036108,0.00048014,120]
[355863818,1741644642072,-235.036108,0.00048014,120]
[355863819,1741644642083,-404.10307,0.00048014,120]
[355863820,1741644642093,-404.10307,0.00048014,120]
[355863821,1741644642102,-151.0,0.00048014,120]
[355863822,1741644642112,-324.010013,0.00048014,120]
[355863823,1741644642122,-324.010013,0.00048014,120]
[355863824,1741644642133,-407.598076,0.00048015,120]
[355863825,1741644642144,-407.598076,0.00048015,120]
[355863826,1741644642154,-151.0,0.00048015,120]
[355863827,1741644642164,-360.571511,0.00048015,30]
[355863828,1741644642174,-360.571511,0.00048015,30]
[355863829,1741644642184,-151.0,0.00048015,120]
[355863830,1741644642194,-500.0,0.00048015,2]
[355863831,1741644642205,-500.0,0.00048015,2]
[355863832,1741644642221,-127407.0329059,0.00048015,2]
[355863833,1741644642233,-293.45121,0.00048015,120]
[355863834,1741644642243,-293.45121,0.00048015,120]
[355863835,1741644642253,-238.141636,0.00048015,120]
[355863836,1741644642263,-238.141636,0.00048015,120]
[355863837,1741644642273,-152.895504,0.00048015,120]
[355863838,1741644642283,-395.376894,0.00048015,120]
[355863839,1741644642293,-395.376894,0.00048015,120]
[355863840,1741644642303,-290.107097,0.00048015,120]
[355863841,1741644642313,-290.107097,0.00048015,120]
[355863842,1741644642323,-237.071884,0.00048015,120]
[355863843,1741644642333,-237.071884,0.00048015,120]
[355863844,1741644642343,-1067.533505,0.00048015,120]
[355863845,1741644642353,-1067.533505,0.00048015,120]
[355863846,1741644642362,-736.564525,0.00048015,120]
[355863847,1741644642372,-736.564525,0.00048015,120]
[355863848,1741644642382,-166.0038,0.00048015,120]
[355863849,1741644642392,-166.0038,0.00048015,120]
[355863850,1741644642402,-151.0,0.00048015,120]
[355863851,1741644642412,-235.036108,0.00048015,120]
[355863852,1741644642422,-235.036108,0.00048015,120]
[355863853,1741644642432,-404.10307,0.00048015,120]
[355863854,1741644642442,-404.10307,0.00048015,120]
[355863855,1741644642453,-345.775452,0.00048015,120]
[355863856,1741644642463,-345.775452,0.00048015,120]
[355863857,1741644642473,-151.0,0.00048015,120]
[355863858,1741644642483,-154.024217,0.00048015,120]
[355863859,1741644642493,-151.0,0.00048015,90]
[355863860,1741644642504,-395.167007,0.00048015,110]
[355863861,1741644642513,-395.167007,0.00048015,110]
[355863862,1741644642524,-324.010013,0.00048015,120]
[355863863,1741644642534,-324.010013,0.00048015,120]
[355863864,1741644642544,-151.0,0.00048015,120]
[355863865,1741644642554,-264.203879,0.00048015,120]
[355863866,1741644642564,-394.807693,0.00048015,120]
[355863867,1741644642574,-394.807693,0.00048015,120]
[355863868,1741644642584,-316.249503,0.00048015,120]
[355863869,1741644642595,-316.249503,0.00048015,120]
[355863870,1741644642604,-151.0,0.00048015,120]
[355863871,1741644642615,-151.0,0.00048015,120]
[355863872,1741644642625,-151.0,0.00048015,120]
[355863873,1741644642636,-288.50938,0.00048015,120]
[355863874,1741644642646,-288.50938,0.00048015,120]
[355863875,1741644642656,-151.0,0.00048015,120]
[355863876,1741644642666,-151.0,0.00048015,120]
[355863877,1741644642676,-151.0,0.00048015,120]
[355863878,1741644642686,-151.0,0.00048015,120]
[355863879,1741644642696,-239.073146,0.00048015,120]
[355863880,1741644642706,-239.073146,0.00048015,120]
[355863881,1741644642716,-407.598076,0.00048058,120]
[355863882,1741644642726,-407.598076,0.00048058,120]
[355863883,1741644642736,-151.0,0.00048058,120]
[355863884,1741644642746,-360.571511,0.00048058,30]
[355863885,1741644642756,-360.571511,0.00048058,30]
[355863886,1741644642766,-151.0,0.00048058,120]
[355863887,1741644642776,-500.0,0.00048058,2]
[355863888,1741644642785,-500.0,0.00048058,2]
[355863889,1741644642795,-153.988223,0.00048067,120]
[355863890,1741644642804,-407.598076,0.00048067,120]
[355863891,1741644642814,-407.598076,0.00048067,120]
[355863892,1741644642823,-360.571511,0.00048067,30]
[355863893,1741644642833,-360.571511,0.00048067,30]
[355863894,1741644642843,-201.01350009,0.00048067,120]
[355863895,1741644642852,-500.0,0.00048067,2]
[355863896,1741644642861,-500.0,0.00048067,2]
[355863897,1741644642871,-303.52961827,0.00048073,10]
[355863898,1741644642881,-500.0,0.00048073,10]
[355863899,1741644642893,-500.0,0.00048073,10]
[355863900,1741644642902,-151.0,0.00048077,120]
[355863901,1741644642913,-293.45121,0.00048147,120]
[355863902,1741644642922,-293.45121,0.00048147,120]
[355863903,1741644642933,-395.376894,0.00048147,120]
[355863904,1741644642942,-395.376894,0.00048147,120]
[355863905,1741644642954,-14251.0285286,0.0004817,4]
[355863914,1741644643204,-557.66628247,0.0004817,4]
[355863916,1741644643217,-500.0,0.00048173,120]
[355863917,1741644643228,-151.0,0.0004818,120]
[355863919,1741644643238,-151.0,0.0004818,120]
[355863920,1741644643248,-736.564525,0.0004818,120]
[355863921,1741644643259,-736.564525,0.0004818,120]
[355863922,1741644643268,-168.3888056,0.00048219,2]
[355863923,1741644643278,-158.47381,0.00048288,4]
[355863924,1741644643288,-151.0,0.000483,29]
[355863925,1741644643298,-3000.0,0.00048319,2]
[355863926,1741644643307,-1000.0,0.00048319,60]
[355863927,1741644643317,-298.93,0.00048319,120]
[355863928,1741644643327,-174.3765124,0.00048319,120]
[355863930,1741644643337,-174.3765124,0.00048319,120]
[355863932,1741644643347,-649.85879284,0.00048319,120]
[355863933,1741644643356,-649.85879284,0.00048319,120]
[355863934,1741644643366,-649.85879284,0.00048319,120]
[355863935,1741644643375,-649.85879284,0.00048319,120]
[355863936,1741644643385,-649.85879284,0.00048319,120]
[355863937,1741644643395,-649.85879284,0.00048319,120]
[355863938,1741644643405,-649.85879284,0.00048319,120]
[355863939,1741644643415,-649.85879284,0.00048319,120]
[355863940,1741644643424,-649.85879284,0.00048319,120]
[355863941,1741644643434,-649.85879284,0.00048319,120]
[355863942,1741644643443,-649.85879284,0.00048319,120]
[355863943,1741644643454,-649.85879284,0.00048319,120]
[355863944,1741644643463,-649.85879284,0.00048319,120]
[355863945,1741644643473,-649.85879284,0.00048319,120]
[355863946,1741644643483,-649.85879284,0.00048319,120]
[355863947,1741644643492,-649.85879284,0.00048319,120]
[355863948,1741644643502,-649.85879284,0.00048319,120]
[355863949,1741644643512,-649.85879284,0.00048319,120]
[355863950,1741644643521,-649.85879284,0.00048319,120]
[355863951,1741644643531,-649.85,0.00048319,120]
[355863952,1741644643541,-1516.3371833,0.00048319,120]
[355863953,1741644643550,-1516.3371833,0.00048319,120]
[355863954,1741644643560,-1516.3371833,0.00048319,120]
[355863955,1741644643570,-1516.3371833,0.00048319,120]
[355863956,1741644643579,-1516.3371833,0.00048319,120]
[355863957,1741644643595,-1516.3371833,0.00048319,120]
[355863958,1741644643605,-1516.3371833,0.00048319,120]
[355863959,1741644643615,-1516.3371833,0.00048319,120]
[355863960,1741644643625,-1516.3371833,0.00048319,120]
[355863961,1741644643635,-1516.3371833,0.00048319,120]
[355863962,1741644643645,-1516.3371833,0.00048319,120]
[355863963,1741644643655,-1516.3371833,0.00048319,120]
[355863964,1741644643665,-1516.3371833,0.00048319,120]
[355863965,1741644643675,-1516.3371833,0.00048319,120]
[355863966,1741644643685,-165.72718982,0.00048356,120]
[355863967,1741644643695,-198.0,0.00048356,90]
[355863968,1741644643706,-395.167007,0.00048373,110]
[355863969,1741644643716,-395.167007,0.00048373,110]
[355863970,1741644643727,-151.0,0.00048373,120]
[355863971,1741644643736,-394.807693,0.00048373,120]
[355863972,1741644643747,-394.807693,0.00048373,120]
[355863973,1741644643757,-151.0,0.00048373,120]
[355863974,1741644643767,-151.0,0.00048373,120]
[355863975,1741644643782,-151.0,0.00048373,120]
[355863976,1741644643795,-151.0,0.00048373,120]
[355863977,1741644643804,-202.404899,0.0004839,120]
[355863978,1741644643814,-151.0,0.0004839,10]
[355863979,1741644643825,-151.0,0.0004839,120]
[355863980,1741644643835,-238.141636,0.0004839,120]
[355863981,1741644643846,-238.141636,0.0004839,120]
[355863982,1741644643857,-290.107097,0.0004839,120]
[355863983,1741644643867,-290.107097,0.0004839,120]
[355863984,1741644643877,-237.071884,0.0004839,120]
[355863985,1741644643886,-237.071884,0.0004839,120]
[355863986,1741644643896,-1067.533505,0.0004839,120]
[355863987,1741644643906,-1067.533505,0.0004839,120]
[355863988,1741644643915,-151.0,0.0004839,120]
[355863989,1741644643926,-179.42331514,0.0004839,38]
[355863990,1741644643938,-345.775452,0.0004839,120]
[355863991,1741644643948,-345.775452,0.0004839,120]
[355863992,1741644643958,-151.0,0.0004839,90]
[355863993,1741644643968,-316.249503,0.0004839,120]
[355863994,1741644643978,-316.249503,0.0004839,120]
[355863995,1741644643988,-151.0,0.0004839,120]
[355863996,1741644643999,-557.66628247,0.0004839,4]
[355863997,1741644644009,-288.50938,0.0004839,120]
[355863998,1741644644018,-288.50938,0.0004839,120]
[355863999,1741644644028,-151.0,0.0004839,120]
[355864000,1741644644038,-239.073146,0.0004839,120]
[355864001,1741644644048,-239.073146,0.0004839,120]
[355864002,1741644644058,-169.122812,0.00048399,120]
[355864003,1741644644069,-500.0,0.00048399,2]
[355864004,1741644644078,-500.0,0.00048399,2]
[355864005,1741644644088,-166.0038,0.00048399,120]
[355864006,1741644644098,-166.0038,0.00048399,120]
[355864007,1741644644108,-1000.0,0.000484,120]
[355864008,1741644644117,-407.598076,0.000484,120]
[355864009,1741644644128,-407.598076,0.000484,120]
[355864010,1741644644142,-360.571511,0.000484,30]
[355864011,1741644644152,-360.571511,0.000484,30]
[355864012,1741644644162,-360.571511,0.000484,30]
[355864013,1741644644172,-360.571511,0.000484,30]
[355864014,1741644644183,-500.0,0.000484,2]
[355864015,1741644644194,-500.0,0.000484,2]
[355864016,1741644644205,-151.0,0.000484,23]
[355864017,1741644644215,-151.0,0.000484,26]
[355864018,1741644644226,-293.45121,0.000484,120]
[355864019,1741644644237,-293.45121,0.000484,120]
[355864020,1741644644247,-238.141636,0.000484,120]
[355864021,1741644644257,-238.141636,0.000484,120]
[355864022,1741644644267,-395.376894,0.000484,120]
[355864023,1741644644277,-395.376894,0.000484,120]
[355864024,1741644644287,-290.107097,0.000484,120]
[355864025,1741644644297,-290.107097,0.000484,120]
[355864026,1741644644308,-237.071884,0.000484,120]
[355864027,1741644644318,-237.071884,0.000484,120]
[355864028,1741644644328,-1067.533505,0.000484,120]
[355864029,1741644644338,-1067.533505,0.000484,120]
[355864030,1741644644348,-736.564525,0.000484,120]
[355864031,1741644644358,-736.564525,0.000484,120]
[355864032,1741644644368,-166.0038,0.000484,120]
[355864033,1741644644378,-166.0038,0.000484,120]
[355864034,1741644644388,-203.135811,0.000484,120]
[355864035,1741644644398,-235.036108,0.000484,120]
[355864036,1741644644408,-235.036108,0.000484,120]
[355864037,1741644644418,-235.036108,0.000484,120]
[355864038,1741644644428,-235.036108,0.000484,120]
[355864039,1741644644439,-404.10307,0.000484,120]
[355864040,1741644644449,-404.10307,0.000484,120]
[355864041,1741644644459,-404.10307,0.000484,120]
[355864042,1741644644469,-404.10307,0.000484,120]
[355864043,1741644644479,-345.775452,0.000484,120]
[355864044,1741644644489,-345.775452,0.000484,120]
[355864045,1741644644499,-151.0,0.000484,120]
[355864046,1741644644509,-151.0,0.000484,90]
[355864047,1741644644519,-395.167007,0.000484,110]
[355864048,1741644644529,-395.167007,0.000484,110]
[355864049,1741644644539,-324.010013,0.000484,120]
[355864050,1741644644549,-324.010013,0.000484,120]
[355864051,1741644644558,-324.010013,0.000484,120]
[355864052,1741644644568,-324.010013,0.000484,120]
[355864053,1741644644578,-151.0,0.000484,120]
[355864054,1741644644588,-394.807693,0.000484,120]
[355864055,1741644644598,-394.807693,0.000484,120]
[355864056,1741644644608,-1000.0,0.000484,56]
[355864057,1741644644618,-151.0,0.000484,27]
[355864059,1741644644628,-183.967461,0.000484,2]
[355864060,1741644644638,-316.249503,0.000484,120]
[355864061,1741644644648,-316.249503,0.000484,120]
[355864062,1741644644658,-180.802991,0.000484,120]
[355864064,1741644644667,-151.0,0.000484,120]
[355864066,1741644644677,-151.0,0.000484,120]
[355864067,1741644644686,-288.50938,0.000484,120]
[355864068,1741644644696,-288.50938,0.000484,120]
[355864069,1741644644708,-151.0,0.000484,120]
[355864070,1741644644718,-151.0,0.000484,120]
[355864071,1741644644728,-166.944484,0.000484,120]
[355864072,1741644644738,-239.073146,0.000484,120]
[355864073,1741644644748,-239.073146,0.000484,120]
[355864074,1741644644759,-166.0,0.00048419,30]
[355864075,1741644644770,-168.0,0.00048419,30]
[355864076,1741644644780,-166.0,0.00048419,30]
[355864077,1741644644790,-168.0,0.00048419,30]
[355864078,1741644644799,-166.0,0.00048419,30]
[355864079,1741644644809,-168.0,0.00048419,30]
[355864080,1741644644819,-166.0,0.00048419,30]
[355864081,1741644644829,-298.85875515,0.00048419,30]
[355864082,1741644644839,-352.0,0.00048419,30]
[355864083,1741644644849,-352.0,0.00048419,30]
[355864084,1741644644859,-352.0,0.00048419,30]
[355864085,1741644644869,-352.0,0.00048419,30]
[355864086,1741644644879,-352.0,0.00048419,30]
[355864087,1741644644889,-352.0,0.00048419,30]
[355864088,1741644644899,-352.0,0.00048419,30]
[355864089,1741644644908,-352.0,0.00048419,30]
[355864090,1741644644918,-343.0,0.00048419,30]
[355864091,1741644644927,-316.0,0.00048419,30]
[355864092,1741644644937,-316.0,0.00048419,30]
[355864093,1741644644947,-316.0,0.00048419,30]
[355864094,1741644644957,-341.70628028,0.00048419,30]
[355864095,1741644644967,-316.0,0.00048419,30]
[355864096,1741644644976,-316.0,0.00048419,30]
[355864097,1741644644987,-316.0,0.00048419,30]
[355864098,1741644644996,-316.0,0.00048419,30]
[355864099,1741644645006,-316.0,0.00048419,30]
[355864100,1741644645016,-316.0,0.00048419,30]
[355864101,1741644645026,-316.0,0.00048419,30]
[355864102,1741644645036,-316.0,0.00048419,30]
[355864103,1741644645045,-316.0,0.00048419,30]
[355864104,1741644645055,-316.0,0.00048419,30]
[355864105,1741644645065,-316.0,0.00048419,30]
[355864106,1741644645074,-316.0,0.00048419,30]
[355864107,1741644645084,-316.0,0.00048419,30]
[355864108,1741644645093,-316.0,0.00048419,30]
[355864109,1741644645103,-316.0,0.00048419,30]
[355864110,1741644645113,-316.0,0.00048419,30]
[355864111,1741644645122,-316.0,0.00048419,30]
[355864112,1741644645132,-316.0,0.00048419,30]
[355864113,1741644645144,-316.0,0.00048419,30]
[355864114,1741644645155,-316.0,0.00048419,30]
[355864115,1741644645164,-316.0,0.00048419,30]
[355864116,1741644645174,-316.0,0.00048419,30]
[355864117,1741644645183,-316.0,0.00048419,30]
[355864118,1741644645195,-316.0,0.00048419,30]
[355864119,1741644645205,-316.0,0.00048419,30]
[355864120,1741644645215,-316.0,0.00048419,30]
[355864121,1741644645225,-316.0,0.00048419,30]
[355864122,1741644645235,-316.0,0.00048419,30]
[355864123,1741644645245,-316.0,0.00048419,30]
[355864124,1741644645255,-316.0,0.00048419,30]
[355864125,1741644645264,-316.0,0.00048419,30]
[355864126,1741644645274,-316.0,0.00048419,30]
[355864127,1741644645283,-316.0,0.00048419,30]
[355864128,1741644645293,-316.0,0.00048419,30]
[355864129,1741644645302,-316.0,0.00048419,30]
[355864130,1741644645313,-316.0,0.00048419,30]
[355864131,1741644645322,-316.0,0.00048419,30]
[355864132,1741644645332,-316.0,0.00048419,30]
[355864133,1741644645342,-352.0,0.00048419,30]
[355864134,1741644645352,-352.0,0.00048419,30]
[355864135,1741644645361,-349.0,0.00048419,30]
[355864136,1741644645371,-557.66628247,0.00048445,4]
[355864137,1741644645381,-500.0,0.00048447,120]
[355864138,1741644645391,-293.45121,0.00048455,120]
[355864139,1741644645400,-293.45121,0.00048455,120]
[355864140,1741644645410,-395.376894,0.00048455,120]
[355864141,1741644645420,-395.376894,0.00048455,120]
[355864142,1741644645430,-736.564525,0.00048455,120]
[355864143,1741644645440,-736.564525,0.00048455,120]
[355864144,1741644645451,-395.167007,0.00048455,110]
[355864145,1741644645460,-395.167007,0.00048455,110]
[355864146,1741644645470,-151.0,0.00048455,120]
[355864147,1741644645480,-394.807693,0.00048455,120]
[355864148,1741644645490,-394.807693,0.00048455,120]
[355864149,1741644645499,-151.0,0.00048455,120]
[355864150,1741644645510,-288.50938,0.00048455,120]
[355864151,1741644645520,-288.50938,0.00048455,120]
[355864152,1741644645530,-151.0,0.00048455,120]
[355864153,1741644645539,-151.0,0.00048455,120]
[355864154,1741644645549,-407.598076,0.00048462,120]
[355864155,1741644645559,-407.598076,0.00048462,120]
[355864156,1741644645569,-150.0,0.00048473,10]
[355864157,1741644645725,-150.72251828,0.00048473,10]
[355864158,1741644645736,-153.61620045,0.00048473,10]
[355864159,1741644645746,-7000.0,0.0004849,2]
[355864160,1741644645756,-153.020385,0.0004849,120]
[355864161,1741644645766,-407.598076,0.0004849,120]
[355864162,1741644645776,-407.598076,0.0004849,120]
[355864163,1741644645785,-360.571511,0.0004849,30]
[355864164,1741644645795,-360.571511,0.0004849,30]
[355864165,1741644645805,-500.0,0.0004849,2]
[355864166,1741644645815,-500.0,0.0004849,2]
[355864167,1741644645825,-238.141636,0.0004849,120]
[355864168,1741644645835,-238.141636,0.0004849,120]
[355864169,1741644645845,-290.107097,0.0004849,120]
[355864170,1741644645855,-290.107097,0.0004849,120]
[355864171,1741644645864,-237.071884,0.0004849,120]
[355864172,1741644645875,-237.071884,0.0004849,120]
[355864173,1741644645884,-1067.533505,0.0004849,120]
[355864174,1741644645894,-1067.533505,0.0004849,120]
[355864175,1741644645904,-166.0038,0.0004849,120]
[355864176,1741644645914,-166.0038,0.0004849,120]
[355864177,1741644645924,-235.036108,0.0004849,120]
[355864178,1741644645934,-235.036108,0.0004849,120]
[355864179,1741644645944,-404.10307,0.0004849,120]
[355864180,1741644645954,-404.10307,0.0004849,120]
[355864181,1741644645964,-345.775452,0.0004849,120]
[355864182,1741644645973,-345.775452,0.0004849,120]
[355864183,1741644645983,-151.0,0.0004849,90]
[355864184,1741644645993,-324.010013,0.0004849,120]
[355864185,1741644646003,-324.010013,0.0004849,120]
[355864186,1741644646012,-316.249503,0.0004849,120]
[355864187,1741644646022,-316.249503,0.0004849,120]
[355864188,1741644646032,-151.0,0.0004849,120]
[355864189,1741644646043,-1672.99884741,0.0004849,4]
[355864190,1741644646052,-239.073146,0.0004849,120]
[355864191,1741644646062,-239.073146,0.0004849,120]
[355864192,1741644646072,-293.45121,0.00048495,120]
[355864193,1741644646082,-293.45121,0.00048495,120]
[355864194,1741644646092,-395.376894,0.00048495,120]
[355864195,1741644646101,-395.376894,0.00048495,120]
[355864196,1741644646111,-736.564525,0.00048495,120]
[355864198,1741644646121,-736.564525,0.00048495,120]
[355864199,1741644646131,-151.0,0.00048497,120]
[355864200,1741644646144,-159.665694,0.00048498,120]
[355864201,1741644646154,-151.0,0.00048499,120]
[355864203,1741644646163,-151.0,0.00048499,120]
[355864205,1741644646173,-295.61698,0.00048499,10]
[355864206,1741644646184,-151.0,0.00048499,120]
[355864207,1741644646194,-151.0,0.00048499,120]
[355864208,1741644646205,-10000.0,0.000485,38]
[355864209,1741644646217,-70137.87404388,0.000485,120]
[355864212,1741644646883,-1.83054158,0.00047412,10]
[355864218,1741645225099,6500.0,0.00025205,30]
[355864220,1741645436147,11762.55385727,0.0001711,2]
[355864223,1741645534154,-390.0,0.00038501,5]
[355864224,1741645534178,-196.0,0.00038502,2]
[355864225,1741645534203,-24900.0,0.00038502,2]
[355864226,1741645534227,-165.91783708,0.000388,113]
[355864227,1741645534252,-1781.59707527,0.000389,8]
[355864228,1741645534276,-183.442,0.00042047,63]
[355864229,1741645534301,-500.0,0.00043873,10]
[355864230,1741645534325,-500.0,0.00043873,10]
[355864231,1741645534348,-306.57311174,0.00043873,2]
[355864232,1741645534377,-303.55940201,0.00043882,31]
[355864233,1741645534435,-335.4117394,0.00043882,120]
[355864234,1741645534466,-500.0,0.00043882,2]
[355864235,1741645534494,-267.87799889,0.00043882,120]
[355864236,1741645534521,-281.04861495,0.00043882,2]
[355864237,1741645534552,-500.0,0.00043882,2]
[355864238,1741645534580,-500.0,0.00043882,2]
[355864239,1741645534609,-500.0,0.00043882,2]
[355864240,1741645534638,-500.0,0.00043882,2]
[355864241,1741645534666,-500.0,0.00043882,2]
[355864242,1741645534693,-500.0,0.00043882,2]
[355864243,1741645534720,-500.0,0.00043882,2]
[355864244,1741645534747,-500.0,0.00043882,2]
[355864245,1741645534775,-500.0,0.00043882,2]
[355864246,1741645534805,-500.0,0.00043882,2]
[355864247,1741645534832,-500.0,0.00043882,2]
[355864248,1741645534859,-500.0,0.00043882,2]
[355864249,1741645534884,-500.0,0.00043882,2]
[355864250,1741645534910,-500.0,0.00043882,2]
[355864251,1741645534937,-500.0,0.00043882,2]
[355864252,1741645534963,-500.0,0.00043882,2]
[355864253,1741645534989,-500.0,0.00043882,2]
[355864254,1741645535014,-500.0,0.00043882,2]
[355864255,1741645535041,-500.0,0.00043882,2]
[355864256,1741645535067,-500.0,0.00043882,2]
[355864257,1741645535094,-500.0,0.00043882,2]
[355864258,1741645535120,-500.0,0.00043882,2]
[355864259,1741645535147,-500.0,0.00043882,2]
[355864260,1741645535177,-500.0,0.00043882,2]
[355864261,1741645535205,-500.0,0.00043882,2]
[355864262,1741645535233,-500.0,0.00043882,2]
[355864263,1741645535259,-500.0,0.00043882,2]
[355864264,1741645535285,-500.0,0.00043882,2]
[355864265,1741645535312,-500.0,0.00043882,2]
[355864266,1741645535341,-500.0,0.00043882,2]
[355864267,1741645535369,-500.0,0.00043882,2]
[355864268,1741645535397,-500.0,0.00043882,2]
[355864269,1741645535426,-500.0,0.00043882,2]
[355864270,1741645535455,-500.0,0.00043882,2]
[355864271,1741645535483,-500.0,0.00043882,2]
[355864272,1741645535509,-500.0,0.00043882,2]
[355864273,1741645535535,-500.0,0.00043882,2]
[355864274,1741645535793,-493.64124004,0.00043882,2]
[355864275,1741645535822,-500.0,0.00043882,2]
[355864276,1741645535851,-500.0,0.00043882,2]